[Event "*** Titled Tuesday Blitz"]
[Site "Chess.com"]
[Date "2021.04.20"]
[Round "3"]
[White "exoticprincess"]
[Black "muchojogo"]
[Result "1-0"]
[WhiteElo "2918"]
[BlackElo "2464"]
[TimeControl "180+1"]
[EndTime "10:26:41 PDT"]
[Termination "exoticprincess won by resignation"]

1. d4 {[%clk 0:03:00.9]} 1... Nf6 {[%clk 0:02:59.2]} 2. Nc3 {[%clk 0:03:00.7]}
2... e6 {[%clk 0:02:57.2]} 3. Bf4 {[%clk 0:03:00.4]} 3... d5 {[%clk 0:02:56.1]}
4. Nb5 {[%clk 0:02:59.9]} 4... Na6 {[%clk 0:02:55.5]} 5. e3 {[%clk 0:02:59.9]}
5... c6 {[%clk 0:02:49.8]} 6. Nc3 {[%clk 0:02:59.5]} 6... Nb8 {[%clk 0:02:50]}
7. Nf3 {[%clk 0:02:58.7]} 7... Bd6 {[%clk 0:02:45.7]} 8. Bd3 {[%clk 0:02:58.3]}
8... Qc7 {[%clk 0:02:43.6]} 9. Qd2 {[%clk 0:02:57]} 9... Nbd7 {[%clk 0:02:42.9]}
10. O-O-O {[%clk 0:02:55]} 10... e5 {[%clk 0:02:38.8]} 11. dxe5 {[%clk
0:02:55.9]} 11... Nxe5 {[%clk 0:02:39.4]} 12. Nxe5 {[%clk 0:02:56.8]} 12... Bxe5
{[%clk 0:02:40.3]} 13. Bxe5 {[%clk 0:02:57.7]} 13... Qxe5 {[%clk 0:02:41.2]} 14.
h3 {[%clk 0:02:57.9]} 14... Bd7 {[%clk 0:02:11.3]} 15. f4 {[%clk 0:02:57.4]}
15... Qe7 {[%clk 0:02:09.5]} 16. g4 {[%clk 0:02:58.3]} 16... O-O-O {[%clk
0:02:09.2]} 17. g5 {[%clk 0:02:56.9]} 17... Nh5 {[%clk 0:02:03.4]} 18. Qf2
{[%clk 0:02:51]} 18... g6 {[%clk 0:01:44.8]} 19. Be2 {[%clk 0:02:48.3]} 19...
Ng7 {[%clk 0:01:44.5]} 20. e4 {[%clk 0:02:46.9]} 20... dxe4 {[%clk 0:01:19.7]}
21. Qxa7 {[%clk 0:02:43.1]} 21... Nf5 {[%clk 0:01:10.7]} 22. Ba6 {[%clk
0:02:33.6]} 22... Qb4 {[%clk 0:00:43.9]} 23. Nb5 {[%clk 0:02:29.2]} 23... Qxb5
{[%clk 0:00:31.6]} 24. Bxb5 {[%clk 0:02:27.3]} 24... cxb5 {[%clk 0:00:32.5]} 25.
Qa8+ {[%clk 0:01:37.3]} 25... Kc7 {[%clk 0:00:32.4]} 26. Qa5+ {[%clk 0:01:38.2]}
26... Kc8 {[%clk 0:00:28.9]} 27. Qc3+ {[%clk 0:01:34.4]} 27... Bc6 {[%clk
0:00:27.8]} 28. Rxd8+ {[%clk 0:01:35.3]} 28... Rxd8 {[%clk 0:00:28.2]} 29. Rd1
{[%clk 0:01:36.1]} 29... Re8 {[%clk 0:00:27.6]} 30. Re1 {[%clk 0:01:25.5]} 30...
e3 {[%clk 0:00:27.2]} 31. Qd3 {[%clk 0:01:22.9]} 31... Kb8 {[%clk 0:00:25.2]}
32. a3 {[%clk 0:01:20.5]} 32... Re4 {[%clk 0:00:20.5]} 33. b3 {[%clk 0:01:10.8]}
33... Rxf4 {[%clk 0:00:20.4]} 34. Rxe3 {[%clk 0:01:10.8]} 34... Rd4 {[%clk
0:00:16.7]} 35. Qc3 {[%clk 0:01:10.8]} 35... Rd8 {[%clk 0:00:09.7]} 36. Re1
{[%clk 0:01:09.3]} 36... Rc8 {[%clk 0:00:08.7]} 37. Kb2 {[%clk 0:01:09]} 37...
Ka8 {[%clk 0:00:08.9]} 38. Qf6 {[%clk 0:01:04.4]} 38... Rc7 {[%clk 0:00:08.2]}
39. Qd8+ {[%clk 0:01:03.2]} 1-0

[Event "*** Titled Tuesday Blitz"]
[Site "Chess.com"]
[Date "2021.04.20"]
[Round "3"]
[White "renehp"]
[Black "buhomurciano"]
[Result "1-0"]
[WhiteElo "2491"]
[BlackElo "2212"]
[TimeControl "180+1"]
[EndTime "10:26:43 PDT"]
[Termination "renehp won on time"]

1. e4 {[%clk 0:02:59.5]} 1... c5 {[%clk 0:02:54.9]} 2. Nf3 {[%clk 0:02:59.3]}
2... Nc6 {[%clk 0:02:52.9]} 3. d4 {[%clk 0:02:58.6]} 3... cxd4 {[%clk
0:02:53.3]} 4. Nxd4 {[%clk 0:02:59.5]} 4... e5 {[%clk 0:02:53.2]} 5. Nb5 {[%clk
0:02:59.6]} 5... d6 {[%clk 0:02:52.9]} 6. N1c3 {[%clk 0:02:59.4]} 6... a6 {[%clk
0:02:53.1]} 7. Na3 {[%clk 0:02:59.5]} 7... b5 {[%clk 0:02:53.5]} 8. Nd5 {[%clk
0:02:59]} 8... Nge7 {[%clk 0:02:53.5]} 9. c4 {[%clk 0:02:56.7]} 9... Nxd5 {[%clk
0:02:52.3]} 10. exd5 {[%clk 0:02:54.1]} 10... Nd4 {[%clk 0:02:51.8]} 11. Be3
{[%clk 0:02:50.5]} 11... Be7 {[%clk 0:02:49.2]} 12. Bd3 {[%clk 0:02:47.2]} 12...
O-O {[%clk 0:02:44.9]} 13. O-O {[%clk 0:02:46.7]} 13... Nf5 {[%clk 0:01:43.2]}
14. cxb5 {[%clk 0:02:30.7]} 14... Nxe3 {[%clk 0:01:40.7]} 15. fxe3 {[%clk
0:02:29.5]} 15... axb5 {[%clk 0:01:25.1]} 16. Nxb5 {[%clk 0:02:27.3]} 16... Qb6
{[%clk 0:01:22.5]} 17. Qe2 {[%clk 0:02:20.8]} 17... Bg5 {[%clk 0:01:09.6]} 18.
Kh1 {[%clk 0:02:18.8]} 18... f5 {[%clk 0:01:05.3]} 19. a4 {[%clk 0:02:12.5]}
19... Bxe3 {[%clk 0:00:15.9]} 20. Nxd6 {[%clk 0:02:07.7]} 20... f4 {[%clk
0:00:11.8]} 21. Nc4 {[%clk 0:01:53.2]} 21... Qd4 {[%clk 0:00:11.5]} 22. Rad1
{[%clk 0:01:48.3]} 22... Qc5 {[%clk 0:00:04.1]} 23. Nxe5 {[%clk 0:01:40.5]}
23... Qe7 {[%clk 0:00:03.8]} 24. Nc6 {[%clk 0:01:30.6]} 24... Qh4 {[%clk
0:00:03.4]} 25. Be4 {[%clk 0:01:22.2]} 25... Bg4 {[%clk 0:00:03.1]} 26. Bf3
{[%clk 0:01:22.1]} 26... Bf5 {[%clk 0:00:03.5]} 27. d6 {[%clk 0:01:19.4]} 27...
Rxa4 {[%clk 0:00:02.9]} 28. Ne7+ {[%clk 0:01:13.2]} 28... Kh8 {[%clk 0:00:02.4]}
29. Nxf5 {[%clk 0:01:11.8]} 29... Rxf5 {[%clk 0:00:02.4]} 30. d7 {[%clk
0:01:09.1]} 30... Rf8 {[%clk 0:00:01.4]} 31. Qc2 {[%clk 0:00:55.8]} 1-0

[Event "*** Titled Tuesday Blitz"]
[Site "Chess.com"]
[Date "2021.04.20"]
[Round "3"]
[White "Serly25"]
[Black "northridgehawk"]
[Result "0-1"]
[WhiteElo "1944"]
[BlackElo "2303"]
[TimeControl "180+1"]
[EndTime "10:26:43 PDT"]
[Termination "northridgehawk won on time"]

1. d4 {[%clk 0:03:00.9]} 1... f5 {[%clk 0:02:58.7]} 2. c4 {[%clk 0:03:00.8]}
2... Nf6 {[%clk 0:02:58.7]} 3. g3 {[%clk 0:03:01.2]} 3... g6 {[%clk 0:02:52]} 4.
Bg2 {[%clk 0:02:59.8]} 4... Bg7 {[%clk 0:02:52.4]} 5. Nf3 {[%clk 0:02:55.7]}
5... O-O {[%clk 0:02:52.6]} 6. O-O {[%clk 0:02:56.1]} 6... c6 {[%clk 0:02:53]}
7. Nc3 {[%clk 0:02:53.7]} 7... d6 {[%clk 0:02:48.7]} 8. Bf4 {[%clk 0:02:20.7]}
8... Na6 {[%clk 0:02:40.5]} 9. Rc1 {[%clk 0:02:16.2]} 9... Nc7 {[%clk
0:02:31.8]} 10. Re1 {[%clk 0:02:01.7]} 10... Ne6 {[%clk 0:02:21.5]} 11. d5
{[%clk 0:01:12.5]} 11... Nxf4 {[%clk 0:02:20.8]} 12. gxf4 {[%clk 0:01:11.6]}
12... Qb6 {[%clk 0:02:15.5]} 13. Qc2 {[%clk 0:00:56.5]} 13... cxd5 {[%clk
0:02:12.1]} 14. Nxd5 {[%clk 0:00:56.2]} 14... Nxd5 {[%clk 0:02:11.1]} 15. cxd5
{[%clk 0:00:56.8]} 15... Qxb2 {[%clk 0:02:11.5]} 16. Qxb2 {[%clk 0:00:51.8]}
16... Bxb2 {[%clk 0:02:12.4]} 17. Rc7 {[%clk 0:00:52.4]} 17... Bf6 {[%clk
0:02:10.4]} 18. Rec1 {[%clk 0:00:45.3]} 18... b6 {[%clk 0:02:07.4]} 19. Ne1
{[%clk 0:00:27.8]} 19... Ba6 {[%clk 0:02:07.2]} 20. e3 {[%clk 0:00:24.6]} 20...
Rac8 {[%clk 0:02:07.4]} 21. Bf1 {[%clk 0:00:18.7]} 21... Bb7 {[%clk 0:01:54.8]}
22. Bg2 {[%clk 0:00:14.3]} 22... Kf7 {[%clk 0:01:49.5]} 23. Nd3 {[%clk
0:00:13.8]} 23... Rfd8 {[%clk 0:01:48]} 24. Nb4 {[%clk 0:00:13.5]} 24... a5
{[%clk 0:01:46.9]} 25. Nd3 {[%clk 0:00:10.1]} 25... Ba6 {[%clk 0:01:47.2]} 26.
Ne1 {[%clk 0:00:09.9]} 26... Rxc7 {[%clk 0:01:44.8]} 27. Rxc7 {[%clk 0:00:09.4]}
27... Rc8 {[%clk 0:01:45.7]} 28. Rxc8 {[%clk 0:00:09.1]} 28... Bxc8 {[%clk
0:01:46]} 29. Bf1 {[%clk 0:00:09.4]} 29... Bb7 {[%clk 0:01:45.8]} 30. Bc4 {[%clk
0:00:09.3]} 30... b5 {[%clk 0:01:44.6]} 31. Bxb5 {[%clk 0:00:07.7]} 31... Bxd5
{[%clk 0:01:45.1]} 32. a4 {[%clk 0:00:08.3]} 32... Be4 {[%clk 0:01:40.5]} 33. f3
{[%clk 0:00:07.6]} 33... Bd5 {[%clk 0:01:40]} 34. Kf2 {[%clk 0:00:08.2]} 34...
e5 {[%clk 0:01:39.5]} 35. fxe5 {[%clk 0:00:05.4]} 35... dxe5 {[%clk 0:01:40.4]}
36. h3 {[%clk 0:00:06]} 36... Ke6 {[%clk 0:01:38.7]} 37. Nd3 {[%clk 0:00:06.2]}
37... Kd6 {[%clk 0:01:38.5]} 38. Ke2 {[%clk 0:00:05]} 38... g5 {[%clk
0:01:32.5]} 39. Be8 {[%clk 0:00:04.5]} 39... Bc6 {[%clk 0:01:30.5]} 40. Bxc6
{[%clk 0:00:02.1]} 40... Kxc6 {[%clk 0:01:31.4]} 41. f4 {[%clk 0:00:01.8]} 41...
e4 {[%clk 0:01:29.4]} 42. Nb2 {[%clk 0:00:01.3]} 42... Kc5 {[%clk 0:01:30.1]}
0-1

[Event "*** Titled Tuesday Blitz"]
[Site "Chess.com"]
[Date "2021.04.20"]
[Round "3"]
[White "alejogarcia1999"]
[Black "quizden37"]
[Result "0-1"]
[WhiteElo "2455"]
[BlackElo "2819"]
[TimeControl "180+1"]
[EndTime "10:26:44 PDT"]
[Termination "quizden37 won by resignation"]

1. d4 {[%clk 0:03:00.9]} 1... Nf6 {[%clk 0:02:50.6]} 2. c4 {[%clk 0:03:00.8]}
2... c5 {[%clk 0:02:50.3]} 3. d5 {[%clk 0:03:00.3]} 3... b5 {[%clk 0:02:50.9]}
4. cxb5 {[%clk 0:03:01.2]} 4... a6 {[%clk 0:02:51.4]} 5. bxa6 {[%clk 0:03:02.1]}
5... Bxa6 {[%clk 0:02:52.3]} 6. Nc3 {[%clk 0:03:01.7]} 6... d6 {[%clk
0:02:52.6]} 7. e4 {[%clk 0:03:01.9]} 7... Bxf1 {[%clk 0:02:53.5]} 8. Kxf1 {[%clk
0:03:02.7]} 8... g6 {[%clk 0:02:54.3]} 9. g3 {[%clk 0:03:03.1]} 9... Nbd7 {[%clk
0:02:55]} 10. Kg2 {[%clk 0:03:00.1]} 10... Bg7 {[%clk 0:02:55.6]} 11. h3 {[%clk
0:03:00.4]} 11... O-O {[%clk 0:02:56.2]} 12. Nf3 {[%clk 0:03:00.5]} 12... Qb6
{[%clk 0:02:54.4]} 13. Qe2 {[%clk 0:02:59.2]} 13... Rfb8 {[%clk 0:02:54.1]} 14.
Rd1 {[%clk 0:02:51]} 14... Ne8 {[%clk 0:02:52.8]} 15. a4 {[%clk 0:02:47.5]}
15... Nc7 {[%clk 0:02:52.5]} 16. Ra3 {[%clk 0:02:46.7]} 16... Qb4 {[%clk
0:02:49.5]} 17. Na2 {[%clk 0:02:29.9]} 17... Qb7 {[%clk 0:02:30.9]} 18. Nc3
{[%clk 0:02:29.4]} 18... Ne5 {[%clk 0:02:27.2]} 19. Nxe5 {[%clk 0:02:24.7]}
19... Bxe5 {[%clk 0:02:28.1]} 20. f4 {[%clk 0:02:11]} 20... Bd4 {[%clk
0:02:22.4]} 21. h4 {[%clk 0:02:08.3]} 21... Qa6 {[%clk 0:02:09.6]} 22. Nb5
{[%clk 0:01:57.6]} 22... Nxb5 {[%clk 0:01:52.7]} 23. axb5 {[%clk 0:01:58.5]}
23... Qb7 {[%clk 0:01:52.7]} 24. Rxa8 {[%clk 0:01:53.4]} 24... Qxa8 {[%clk
0:01:51.8]} 25. Be3 {[%clk 0:01:45.8]} 25... Bg7 {[%clk 0:01:45.4]} 26. e5
{[%clk 0:01:44.7]} 26... Qa4 {[%clk 0:01:42.4]} 27. Bf2 {[%clk 0:01:29.9]} 27...
Qxb5 {[%clk 0:01:37.6]} 28. Rd2 {[%clk 0:01:30]} 28... Qb3 {[%clk 0:01:14.7]}
29. exd6 {[%clk 0:01:18.8]} 29... exd6 {[%clk 0:01:14.4]} 30. Qe7 {[%clk
0:01:17.7]} 30... Bf8 {[%clk 0:01:07]} 31. Qf6 {[%clk 0:01:08.4]} 31... Re8
{[%clk 0:01:06.3]} 32. h5 {[%clk 0:00:57.7]} 32... Qb4 {[%clk 0:01:03.4]} 33.
hxg6 {[%clk 0:00:54.5]} 33... hxg6 {[%clk 0:01:00.8]} 34. Rd1 {[%clk 0:00:50.4]}
34... Qe4+ {[%clk 0:01:00.3]} 35. Kg1 {[%clk 0:00:45.5]} 35... Qf3 {[%clk
0:01:00.4]} 36. Rd2 {[%clk 0:00:41.6]} 36... Bg7 {[%clk 0:00:53.4]} 37. Qxd6
{[%clk 0:00:40.3]} 37... Bd4 {[%clk 0:00:53.9]} 38. Bxd4 {[%clk 0:00:19.8]}
38... Re1+ {[%clk 0:00:52.7]} 0-1

[Event "*** Titled Tuesday Blitz"]
[Site "Chess.com"]
[Date "2021.04.20"]
[Round "3"]
[White "ZEN-22"]
[Black "Klavdia_Nik"]
[Result "1-0"]
[WhiteElo "2364"]
[BlackElo "2051"]
[TimeControl "180+1"]
[EndTime "10:26:44 PDT"]
[Termination "ZEN-22 won by resignation"]

1. e3 {[%clk 0:03:00.9]} 1... c5 {[%clk 0:02:22.4]} 2. d4 {[%clk 0:02:56.1]}
2... Nf6 {[%clk 0:02:18.5]} 3. Ne2 {[%clk 0:02:55.6]} 3... b6 {[%clk 0:02:18.4]}
4. Nbc3 {[%clk 0:02:52.6]} 4... Bb7 {[%clk 0:02:18.1]} 5. d5 {[%clk 0:02:51.1]}
5... d6 {[%clk 0:02:17.4]} 6. Nf4 {[%clk 0:01:30]} 6... g6 {[%clk 0:02:13.5]} 7.
h4 {[%clk 0:01:28.1]} 7... h5 {[%clk 0:02:08.9]} 8. Bb5+ {[%clk 0:01:26.7]} 8...
Nfd7 {[%clk 0:02:03.4]} 9. Ne6 {[%clk 0:01:27.6]} 9... Qc8 {[%clk 0:01:46.8]}
10. Qf3 {[%clk 0:01:18.7]} 10... a6 {[%clk 0:01:44.3]} 11. Nxf8 {[%clk
0:01:07.3]} 11... Kxf8 {[%clk 0:01:36.7]} 12. Be2 {[%clk 0:01:01.5]} 12... b5
{[%clk 0:01:20.3]} 13. e4 {[%clk 0:00:55.3]} 13... b4 {[%clk 0:01:02.3]} 14. Nd1
{[%clk 0:00:54.3]} 14... a5 {[%clk 0:01:00.6]} 15. Qg3 {[%clk 0:00:48]} 15...
Ba6 {[%clk 0:00:56.8]} 16. Bf3 {[%clk 0:00:45.3]} 16... Ne5 {[%clk 0:00:54.8]}
17. Bf4 {[%clk 0:00:44.8]} 17... Nbd7 {[%clk 0:00:43.1]} 18. Ne3 {[%clk
0:00:43.7]} 18... a4 {[%clk 0:00:30]} 19. Rd1 {[%clk 0:00:42.2]} 19... Nxf3+
{[%clk 0:00:17.5]} 20. gxf3 {[%clk 0:00:41.4]} 20... Nf6 {[%clk 0:00:14]} 21. e5
{[%clk 0:00:39.6]} 21... dxe5 {[%clk 0:00:12.3]} 22. Bxe5 {[%clk 0:00:39.7]}
22... Qd7 {[%clk 0:00:06.8]} 23. d6 {[%clk 0:00:39.4]} 23... Kg7 {[%clk
0:00:05.4]} 24. dxe7 {[%clk 0:00:36.8]} 24... Qxe7 {[%clk 0:00:04.9]} 25. Nf5+
{[%clk 0:00:36.7]} 1-0

[Event "*** Titled Tuesday Blitz"]
[Site "Chess.com"]
[Date "2021.04.20"]
[Round "3"]
[White "Irishchessman16"]
[Black "RzayevB"]
[Result "0-1"]
[WhiteElo "2281"]
[BlackElo "2536"]
[TimeControl "180+1"]
[EndTime "10:26:47 PDT"]
[Termination "RzayevB won by resignation"]

1. e4 {[%clk 0:03:00.9]} 1... c5 {[%clk 0:02:55.1]} 2. Nf3 {[%clk 0:02:50.9]}
2... a6 {[%clk 0:02:54.9]} 3. d4 {[%clk 0:02:40.9]} 3... cxd4 {[%clk 0:02:55.8]}
4. Qxd4 {[%clk 0:02:40.6]} 4... Nc6 {[%clk 0:02:54.9]} 5. Qe3 {[%clk 0:02:40.4]}
5... Nf6 {[%clk 0:02:53.4]} 6. h3 {[%clk 0:02:36.1]} 6... d5 {[%clk 0:02:53]} 7.
e5 {[%clk 0:02:34.7]} 7... Ne4 {[%clk 0:02:44.8]} 8. Bd3 {[%clk 0:02:33]} 8...
Bf5 {[%clk 0:02:25.8]} 9. Nh4 {[%clk 0:02:29]} 9... e6 {[%clk 0:02:04.3]} 10.
Nxf5 {[%clk 0:02:14.6]} 10... exf5 {[%clk 0:02:05.2]} 11. O-O {[%clk 0:01:40.6]}
11... Nxe5 {[%clk 0:01:57.3]} 12. Nc3 {[%clk 0:01:30.8]} 12... d4 {[%clk
0:01:46.5]} 13. Qf4 {[%clk 0:01:29.2]} 13... Nxd3 {[%clk 0:01:46.9]} 14. Qxf5
{[%clk 0:01:26.9]} 14... Nxc3 {[%clk 0:01:36.7]} 15. Qxd3 {[%clk 0:01:02.6]}
15... Nb5 {[%clk 0:01:27.6]} 16. a4 {[%clk 0:00:58.9]} 16... Nc7 {[%clk
0:01:26.7]} 17. Re1+ {[%clk 0:00:47.3]} 17... Be7 {[%clk 0:01:25.1]} 18. Bg5
{[%clk 0:00:39.5]} 18... Ne6 {[%clk 0:01:13.9]} 19. Bxe7 {[%clk 0:00:32.9]}
19... Qxe7 {[%clk 0:01:14.8]} 20. f4 {[%clk 0:00:32.9]} 20... g6 {[%clk
0:01:15.1]} 21. f5 {[%clk 0:00:29.6]} 21... gxf5 {[%clk 0:01:15.1]} 22. Qxf5
{[%clk 0:00:29.8]} 22... O-O-O {[%clk 0:01:15]} 23. Re5 {[%clk 0:00:25.9]} 23...
Rhg8 {[%clk 0:01:11.4]} 24. Rf1 {[%clk 0:00:23.7]} 24... Rg5 {[%clk 0:01:09.4]}
25. Qxg5 {[%clk 0:00:13.8]} 25... Qxg5 {[%clk 0:01:09]} 26. Rxg5 {[%clk
0:00:13.9]} 26... Nxg5 {[%clk 0:01:09.9]} 27. Rf5 {[%clk 0:00:14.3]} 27... h6
{[%clk 0:01:08.5]} 28. h4 {[%clk 0:00:13.8]} 28... Ne4 {[%clk 0:01:07.7]} 29.
Rxf7 {[%clk 0:00:13.8]} 29... d3 {[%clk 0:01:08.2]} 30. cxd3 {[%clk 0:00:14.1]}
30... Rxd3 {[%clk 0:01:09.1]} 31. Rf4 {[%clk 0:00:13.9]} 31... Rd1+ {[%clk
0:01:01.8]} 32. Kh2 {[%clk 0:00:13.5]} 32... Nd2 {[%clk 0:01:02.2]} 33. Rf7
{[%clk 0:00:10.8]} 33... Nf1+ {[%clk 0:01:01.5]} 34. Kh3 {[%clk 0:00:11.1]}
34... h5 {[%clk 0:01:01.5]} 35. g3 {[%clk 0:00:10.7]} 35... Rd3 {[%clk
0:01:01.1]} 36. Kg2 {[%clk 0:00:11.1]} 36... Nxg3 {[%clk 0:01:00.5]} 37. Rh7
{[%clk 0:00:10.7]} 37... Ne2 {[%clk 0:01:00.1]} 38. Kf2 {[%clk 0:00:09.3]} 38...
Nf4 {[%clk 0:01:00.2]} 39. Ke1 {[%clk 0:00:08.9]} 39... Rb3 {[%clk 0:01:00.2]}
0-1

[Event "*** Titled Tuesday Blitz"]
[Site "Chess.com"]
[Date "2021.04.20"]
[Round "3"]
[White "Vanina1989"]
[Black "Sanyura"]
[Result "1-0"]
[WhiteElo "2791"]
[BlackElo "2613"]
[TimeControl "180+1"]
[EndTime "10:26:50 PDT"]
[Termination "Vanina1989 won on time"]

1. d4 {[%clk 0:03:00.9]} 1... Nf6 {[%clk 0:02:47.1]} 2. c4 {[%clk 0:03:00.5]}
2... g6 {[%clk 0:02:43.8]} 3. Nc3 {[%clk 0:03:00.3]} 3... Bg7 {[%clk 0:02:43.2]}
4. e4 {[%clk 0:03:00.6]} 4... d6 {[%clk 0:02:43.7]} 5. Nf3 {[%clk 0:03:00.7]}
5... O-O {[%clk 0:02:43.6]} 6. Be2 {[%clk 0:03:01.3]} 6... e5 {[%clk 0:02:43.2]}
7. O-O {[%clk 0:03:01.4]} 7... Nc6 {[%clk 0:02:42.9]} 8. Be3 {[%clk 0:03:01.7]}
8... h6 {[%clk 0:02:25.8]} 9. d5 {[%clk 0:02:58.6]} 9... Ne7 {[%clk 0:02:25.4]}
10. Nd2 {[%clk 0:02:56.2]} 10... Ne8 {[%clk 0:02:20.9]} 11. c5 {[%clk 0:02:54]}
11... f5 {[%clk 0:02:18.1]} 12. f3 {[%clk 0:02:54.6]} 12... g5 {[%clk
0:02:11.9]} 13. Nc4 {[%clk 0:02:53.7]} 13... Rf7 {[%clk 0:02:11.7]} 14. cxd6
{[%clk 0:02:48.2]} 14... cxd6 {[%clk 0:02:12.6]} 15. Rc1 {[%clk 0:02:47]} 15...
f4 {[%clk 0:02:07.2]} 16. Bf2 {[%clk 0:02:46.9]} 16... Ng6 {[%clk 0:01:53.7]}
17. Nb5 {[%clk 0:02:42.5]} 17... a6 {[%clk 0:01:51.9]} 18. Nb6 {[%clk
0:02:22.3]} 18... Rb8 {[%clk 0:01:36.3]} 19. Na3 {[%clk 0:02:08.4]} 19... g4
{[%clk 0:01:30.8]} 20. Nxc8 {[%clk 0:02:03.7]} 20... Rxc8 {[%clk 0:01:31.7]} 21.
fxg4 {[%clk 0:02:01.3]} 21... Rxc1 {[%clk 0:01:20.2]} 22. Qxc1 {[%clk
0:02:01.3]} 22... Qg5 {[%clk 0:01:19.3]} 23. Bf3 {[%clk 0:01:56.8]} 23... Nf6
{[%clk 0:01:17.6]} 24. Qc8+ {[%clk 0:01:55.8]} 24... Bf8 {[%clk 0:01:02.2]} 25.
Qf5 {[%clk 0:01:51.4]} 25... Rc7 {[%clk 0:00:40.4]} 26. Bb6 {[%clk 0:01:50.6]}
26... Rh7 {[%clk 0:00:13.6]} 27. Rc1 {[%clk 0:01:33.8]} 27... Qxf5 {[%clk
0:00:08.7]} 28. gxf5 {[%clk 0:01:33.6]} 28... Nh4 {[%clk 0:00:09]} 29. Kf2
{[%clk 0:01:28]} 29... Rg7 {[%clk 0:00:08.7]} 30. Bd8 {[%clk 0:01:16.1]} 30...
Be7 {[%clk 0:00:08.9]} 31. Bxe7 {[%clk 0:01:15.2]} 31... Rxe7 {[%clk 0:00:09.8]}
32. Rc8+ {[%clk 0:01:15.3]} 32... Kh7 {[%clk 0:00:09.8]} 33. Nc4 {[%clk
0:01:15]} 33... Rd7 {[%clk 0:00:04.6]} 34. Nb6 {[%clk 0:01:07.3]} 34... Rg7
{[%clk 0:00:03.8]} 35. Nc4 {[%clk 0:01:01.7]} 35... Ng4+ {[%clk 0:00:04]} 36.
Bxg4 {[%clk 0:01:01.2]} 36... Rxg4 {[%clk 0:00:04.9]} 37. g3 {[%clk 0:01:00.5]}
37... fxg3+ {[%clk 0:00:03.5]} 38. hxg3 {[%clk 0:01:00.8]} 1-0

[Event "*** Titled Tuesday Blitz"]
[Site "Chess.com"]
[Date "2021.04.20"]
[Round "3"]
[White "nikitakhoroshev"]
[Black "Taktikmonster"]
[Result "1/2-1/2"]
[WhiteElo "2620"]
[BlackElo "2421"]
[TimeControl "180+1"]
[EndTime "10:26:50 PDT"]
[Termination "Game drawn by agreement"]

1. e4 {[%clk 0:03:00.9]} 1... c5 {[%clk 0:02:55.2]} 2. Nf3 {[%clk 0:03:00]} 2...
d6 {[%clk 0:02:54.8]} 3. c3 {[%clk 0:02:59.7]} 3... Nf6 {[%clk 0:02:54.4]} 4.
Be2 {[%clk 0:02:59.8]} 4... e5 {[%clk 0:02:52.1]} 5. O-O {[%clk 0:02:59.1]} 5...
Nc6 {[%clk 0:02:52.7]} 6. d4 {[%clk 0:02:58.4]} 6... cxd4 {[%clk 0:02:52.7]} 7.
cxd4 {[%clk 0:02:58.5]} 7... exd4 {[%clk 0:02:53.3]} 8. Nxd4 {[%clk 0:02:58.1]}
8... Be7 {[%clk 0:02:48]} 9. Nc3 {[%clk 0:02:56.2]} 9... O-O {[%clk 0:02:47]}
10. Bf4 {[%clk 0:02:55.5]} 10... d5 {[%clk 0:02:42.2]} 11. exd5 {[%clk
0:02:48.6]} 11... Nxd5 {[%clk 0:02:43.1]} 12. Nxd5 {[%clk 0:02:48.5]} 12... Qxd5
{[%clk 0:02:42.9]} 13. Nxc6 {[%clk 0:02:49.1]} 13... Qxc6 {[%clk 0:02:36.2]} 14.
Bf3 {[%clk 0:02:49.3]} 14... Qf6 {[%clk 0:02:24.8]} 15. Qa4 {[%clk 0:02:46.7]}
15... Qxb2 {[%clk 0:01:48.8]} 16. Rab1 {[%clk 0:02:46.2]} 16... Qf6 {[%clk
0:01:48.7]} 17. Bxb7 {[%clk 0:02:45.9]} 17... Bxb7 {[%clk 0:01:49.6]} 18. Rxb7
{[%clk 0:02:46]} 18... Bc5 {[%clk 0:01:47.9]} 19. Bg3 {[%clk 0:02:38.4]} 19...
Rfe8 {[%clk 0:01:42.4]} 20. Qc4 {[%clk 0:02:22.8]} 20... Rac8 {[%clk 0:01:34]}
21. Qb5 {[%clk 0:02:19.6]} 21... h5 {[%clk 0:01:27.1]} 22. h4 {[%clk 0:02:16.7]}
22... Qc3 {[%clk 0:00:44.7]} 23. Qb3 {[%clk 0:02:04.2]} 23... Qxb3 {[%clk
0:00:41.2]} 24. axb3 {[%clk 0:02:02]} 24... Bb6 {[%clk 0:00:38.7]} 25. Rd1
{[%clk 0:02:01.2]} 25... Red8 {[%clk 0:00:38]} 26. Rxd8+ {[%clk 0:01:53.7]}
26... Rxd8 {[%clk 0:00:38.9]} 27. Rb8 {[%clk 0:01:54]} 27... Rxb8 {[%clk
0:00:36.5]} 28. Bxb8 {[%clk 0:01:54.9]} 28... Kf8 {[%clk 0:00:37]} 29. Kf1
{[%clk 0:01:55.2]} 29... Ke7 {[%clk 0:00:37.3]} 30. f3 {[%clk 0:01:55.4]} 30...
Ke6 {[%clk 0:00:36.8]} 31. g4 {[%clk 0:01:55.4]} 31... g6 {[%clk 0:00:37]} 32.
Ke2 {[%clk 0:01:53.7]} 32... Kd5 {[%clk 0:00:37.3]} 33. Bg3 {[%clk 0:01:49.6]}
33... f5 {[%clk 0:00:37.3]} 34. gxf5 {[%clk 0:01:48.2]} 34... gxf5 {[%clk
0:00:38.2]} 35. Kd3 {[%clk 0:01:48.8]} 35... Bd4 {[%clk 0:00:33.9]} 36. Bf4
{[%clk 0:01:48.3]} 36... Bf2 {[%clk 0:00:33]} 37. Bg5 {[%clk 0:01:47.5]} 37...
Kc5 {[%clk 0:00:29.9]} 38. Be7+ {[%clk 0:01:45.9]} 38... Kd5 {[%clk 0:00:27.8]}
39. Kc3 {[%clk 0:01:46.2]} 39... Ke5 {[%clk 0:00:25.8]} 40. Bg5 {[%clk
0:01:45.4]} 40... Kd5 {[%clk 0:00:22.7]} 41. Bf6 {[%clk 0:01:40.5]} 41... a6
{[%clk 0:00:21.4]} 42. Bd8 {[%clk 0:01:38.7]} 42... Ke5 {[%clk 0:00:20.1]} 43.
Bg5 {[%clk 0:01:38.5]} 43... Kd5 {[%clk 0:00:20.4]} 44. Kb4 {[%clk 0:01:38.8]}
44... Kd4 {[%clk 0:00:19.7]} 45. Ka5 {[%clk 0:01:38.9]} 45... Kc3 {[%clk
0:00:19.8]} 46. b4 {[%clk 0:01:39.1]} 46... Kc4 {[%clk 0:00:16.8]} 47. Be7
{[%clk 0:01:39]} 47... Be1 {[%clk 0:00:15.5]} 48. Ka4 {[%clk 0:01:28.1]} 48...
Bd2 {[%clk 0:00:14.7]} 49. Ka5 {[%clk 0:01:26.9]} 49... Be1 {[%clk 0:00:14.9]}
50. Ka4 {[%clk 0:01:22.6]} 50... Bd2 {[%clk 0:00:15.1]} 1/2-1/2